bitfinex-derivatives/quotes_ETHF0:USTF0_20240822
["timestamp","ask_amount","ask_price","bid_price","bid_amount"]
[1724347105685,5.00127413,2615.3,2615.1,3.2078]
[1724347105889,5.00127413,2615.3,2615.2,0.3687]
[1724347106088,5.00459705,2615.4,2615.2,0.75096]
[1724347106295,5.38682705,2615.4,2615.2,0.3687]
[1724347106495,5.38682705,2615.4,2615.1,3.2078]
[1724347106496,0.38226,2615.2,2615.1,3.2078]
[1724347106993,0.73426,2615.2,2614.8,0.3795]
[1724347107200,0.73426,2615.2,2614.8,3.96962]
[1724347107201,0.74059,2615.1,2614.8,3.96962]
[1724347107594,5.74186413,2615.1,2614.8,3.96962]
[1724347107795,0.38231,2614.9,2614.8,3.2078]
[1724347108191,5.38358413,2614.9,2614.8,3.2078]
[1724347108591,5.38358413,2614.9,2614.6,0.00574053]
[1724347108800,0.352,2614.8,2614.6,0.00574053]
[1724347108999,5.35327413,2614.8,2614.6,0.00574053]
[1724347109405,0.38234,2614.7,2614.6,0.00574053]
[1724347109703,5.11869,2614.7,2614.6,0.00574053]
[1724347109907,8.94349,2614.7,2614.6,0.00574053]
[1724347110106,7.98764,2614.7,2614.6,0.00574053]
[1724347110302,8.94349,2614.7,2614.6,0.00574053]
[1724347110498,7.98764,2614.7,2614.6,0.00574053]
[1724347111401,7.79764,2614.7,2614.6,0.00574053]
[1724347113211,7.4153,2614.7,2614.6,0.00574053]
[1724347113501,0.352,2614.8,2614.6,0.00574053]
[1724347116499,0.73432,2614.8,2614.6,0.00574053]
[1724347117413,0.352,2614.8,2614.6,0.00574053]
[1724347118704,0.73432,2614.8,2614.6,0.00574053]
[1724347118903,0.352,2614.8,2614.6,0.00574053]
[1724347119404,0.73432,2614.8,2614.6,0.00574053]
[1724347124013,0.38234,2614.7,2614.6,0.00574053]
[1724347127115,0.352,2614.8,2614.6,0.00574053]
[1724347127315,0.73433,2614.8,2614.6,0.00574053]
[1724347128319,0.38234,2614.7,2614.6,0.00574053]
[1724347128819,3.8248,2614.7,2614.6,0.00574053]
[1724347129004,4.20714,2614.7,2614.6,0.00574053]
[1724347129614,0.73433,2614.8,2614.6,0.00574053]
[1724347129809,1.34433,2614.8,2614.6,0.00574053]
[1724347130012,0.38234,2614.7,2614.6,0.00574053]
[1724347134516,0.352,2614.8,2614.6,0.00574053]
[1724347134821,0.352,2614.8,2614.6,0.38809053]
[1724347135022,0.352,2614.8,2614.6,0.00574053]
[1724347135517,0.352,2614.8,2614.6,0.38809053]
[1724347135722,0.352,2614.8,2614.6,0.00574053]
[1724347136221,0.352,2614.8,2614.6,3.21354053]
[1724347136410,0.73432,2614.8,2614.6,3.21354053]
[1724347138522,0.73432,2614.8,2614.6,0.00574053]
[1724347140421,0.352,2614.8,2614.6,1.76508053]
[1724347140721,0.352,2614.8,2614.6,4.97288053]
[1724347141424,1.377,2614.9,2614.7,0.38234]
[1724347141815,1.377,2614.9,2614.8,0.3579]
[1724347142319,1.75931,2614.9,2614.8,0.3579]
[1724347143218,0.7157,2615.0,2614.8,0.3579]
[1724347143612,1.098,2615.0,2614.8,0.3579]
[1724347145025,0.38225,2615.3,2615.0,0.38229]
[1724347145221,0.38227,2615.2,2615.1,1.377]
[1724347145523,0.38231,2614.9,2614.7,1.377]
[1724347145720,1.377,2615.0,2614.7,1.377]
[1724347145921,0.38231,2614.9,2614.7,1.377]
[1724347146121,1.12571,2614.9,2614.7,1.377]
[1724347146426,1.12571,2614.9,2614.6,1.38274053]
[1724347146427,0.38232,2614.8,2614.6,1.38274053]
[1724347146727,0.3543,2614.7,2614.6,1.76509053]
[1724347146920,0.3543,2614.7,2614.6,1.38274053]
[1724347147119,0.3543,2614.7,2614.6,1.76509053]
[1724347148034,1.12571,2614.9,2614.6,1.76509053]
[1724347148035,0.3829,2614.9,2614.8,0.38232]
[1724347148223,0.3829,2614.9,2614.8,1.75932]
[1724347148423,0.3829,2614.9,2614.8,1.377]
[1724347148824,0.38232,2614.8,2614.7,1.377]
[1724347149139,0.76522,2614.9,2614.7,1.377]
[1724347149432,0.3829,2614.9,2614.7,1.377]
[1724347149618,0.76522,2614.9,2614.7,1.377]
[1724347149825,0.38232,2614.8,2614.7,1.377]
[1724347150421,0.38234,2614.7,2614.6,0.00574053]
[1724347152127,1.33819,2614.7,2614.6,0.00574053]
[1724347152337,4.20714,2614.7,2614.6,0.00574053]
[1724347152826,4.76714,2614.7,2614.6,0.00574053]
[1724347153419,11.14414,2614.7,2614.6,0.00574053]
[1724347153624,6.14414,2614.7,2614.6,0.00574053]
[1724347154028,4.3848,2614.7,2614.6,0.00574053]
[1724347154235,4.76714,2614.7,2614.6,0.00574053]
[1724347154622,7.09999,2614.7,2614.6,0.00574053]
[1724347154827,4.3848,2614.7,2614.6,0.00574053]
[1724347155029,1.7599,2614.9,2614.6,0.00574053]
[1724347155232,1.6729,2614.9,2614.7,1.377]
[1724347155428,0.76521,2614.9,2614.7,1.377]
[1724347155628,0.76521,2614.9,2614.6,0.38914053]
[1724347155629,2.14221,2614.9,2614.6,1.76614053]
[1724347156427,0.76521,2614.9,2614.6,0.38914053]
[1724347157839,0.3829,2614.9,2614.6,0.38914053]
[1724347158337,0.3702,2615.0,2614.8,0.38232]
[1724347158541,0.3702,2615.0,2614.6,0.38914053]
[1724347158737,0.3702,2615.0,2614.7,0.38232]
[1724347159544,0.368,2614.9,2614.7,0.38232]
[1724347160237,0.368,2614.9,2614.6,0.38914053]
[1724347160436,0.75031,2614.9,2614.6,0.38914053]
[1724347163338,0.75031,2614.9,2614.6,0.77149053]
[1724347165152,0.38232,2614.8,2614.6,0.38914053]
[1724347165340,0.73172,2614.8,2614.6,0.00574053]
[1724347165937,0.38234,2614.7,2614.6,0.00574053]
[1724347166151,8.14299,2614.7,2614.6,0.00574053]
[1724347166345,8.16197907,2614.7,2614.6,0.00574053]
[1724347166543,7.20612907,2614.7,2614.6,0.00574053]
[1724347166849,3.38132907,2614.7,2614.6,0.00574053]
[1724347167050,3.36234,2614.7,2614.6,0.00574053]
[1724347167248,3.38132628,2614.7,2614.6,0.00574053]
[1724347167444,0.01898751,2614.7,2614.6,0.00574053]
[1724347167646,0.3494,2614.8,2614.6,0.38809053]
[1724347168043,0.368,2614.9,2614.7,0.38233]
[1724347168242,0.75031,2614.9,2614.7,0.3531]
[1724347168551,0.40130038,2614.8,2614.6,0.00574053]
[1724347168751,0.38,2614.8,2614.6,0.38809053]
[1724347169149,0.38,2614.8,2614.6,0.00574053]
[1724347169457,0.76233,2614.8,2614.6,0.00574053]
[1724347170148,0.76233,2614.8,2614.6,0.38809053]
[1724347170149,0.38,2614.8,2614.6,0.38809053]
[1724347170343,0.38234,2614.7,2614.6,0.00574053]
[1724347171248,0.76233,2614.8,2614.6,0.00574053]
[1724347173251,0.38234,2614.7,2614.6,0.00574053]
[1724347173951,0.38,2614.8,2614.6,0.00574053]
[1724347173952,0.76233,2614.8,2614.6,0.00574053]
[1724347174155,0.38234,2614.7,2614.6,0.00574053]
[1724347177254,0.76233,2614.8,2614.6,0.00574053]
[1724347177462,0.38234,2614.7,2614.6,0.00574053]
[1724347177939,0.38,2614.8,2614.7,0.38234]
[1724347178139,0.368,2614.9,2614.6,3.83054053]
[1724347178355,0.75249,2615.0,2614.8,3.2078]
[1724347178545,0.75249,2615.0,2614.8,4.5848]
[1724347178852,0.75249,2615.0,2614.8,1.377]
[1724347179052,0.75249,2615.0,2614.8,4.5848]
[1724347179751,0.3606,2615.2,2614.8,4.5848]
[1724347180053,0.3606,2615.2,2614.7,0.3679]
[1724347180054,0.3606,2615.2,2615.1,4.5848]
[1724347180447,0.3606,2615.2,2615.1,4.9697]
[1724347180646,0.3606,2615.2,2615.1,1.7619]
[1724347181250,0.74286,2615.2,2615.0,1.377]
[1724347182051,0.74286,2615.2,2614.8,0.38231]
[1724347182052,0.3823,2615.0,2614.8,1.377]
[1724347182361,5.38527448,2614.9,2614.7,3.97503]
[1724347182552,5.38527448,2614.9,2614.8,1.75932]
[1724347182853,5.38527448,2614.9,2614.8,1.377]
[1724347183253,0.3732,2614.9,2614.8,1.377]
[1724347183555,0.3732,2614.9,2614.8,1.75932]
[1724347183751,0.3732,2614.9,2614.8,1.377]
[1724347183951,5.01207448,2615.0,2614.9,0.38231]
[1724347184355,5.01207448,2615.0,2614.9,4.20631]
[1724347184656,5.01207448,2615.1,2615.0,0.38229]
[1724347185056,5.39435448,2615.1,2615.0,3.2078]
[1724347185455,0.38229,2615.0,2614.8,0.38232]
[1724347185653,5.01066167,2615.0,2614.7,0.3849]
[1724347185851,5.01066167,2615.0,2614.8,0.38232]
[1724347186550,5.01066167,2614.9,2614.8,0.38232]
[1724347187157,5.01066167,2614.9,2614.6,3.21354053]
[1724347187457,0.38234,2614.7,2614.6,0.00574053]
[1724347187660,5.39300167,2614.7,2614.6,0.00574053]
[1724347187953,0.38234,2614.7,2614.6,0.00574053]
[1724347188348,3.59014,2614.7,2614.6,0.00574053]
[1724347188544,11.21978007,2614.7,2614.6,0.00574053]
[1724347188753,16.21978007,2614.7,2614.6,0.00574053]
[1724347189256,0.38244,2614.1,2613.9,3.2078]
[1724347189556,0.95598,2614.4,2613.9,3.2078]
[1724347189557,0.751,2614.0,2613.9,3.2078]
[1724347190547,0.38245,2613.9,2613.8,0.00463891]
[1724347191060,4.26805,2613.9,2613.8,0.00463891]
[1724347191256,4.20805,2613.9,2613.8,0.00463891]
[1724347191557,10.16419,2613.9,2613.8,0.00463891]
[1724347191755,0.38247,2613.8,2613.7,0.00574053]
[1724347191955,9.89637,2613.8,2613.7,0.00574053]
[1724347192156,0.38249,2613.7,2613.3,0.38254]
[1724347192461,0.3825,2613.6,2613.2,3.59035]
[1724347192761,0.3825,2613.6,2613.3,0.38254]
[1724347192954,0.3783,2613.5,2613.2,3.59464485]
[1724347193268,0.38141574,2613.5,2613.2,3.59464485]
[1724347193568,0.4015473,2613.4,2613.2,0.00429485]
[1724347193756,0.38253,2613.4,2613.2,0.00429485]
[1724347194055,0.0190219,2613.3,2613.2,0.00429485]
[1724347194259,0.4015619,2613.3,2613.2,0.00429485]
[1724347196360,4.2279619,2613.3,2613.2,0.00429485]
[1724347197447,0.38256,2613.2,2613.1,0.00574053]
[1724347197762,7.7968819,2613.2,2613.1,0.00574053]
[1724347198460,7.7968819,2613.2,2613.1,0.00855918]
[1724347198849,9.1268819,2613.2,2613.1,0.00855918]
[1724347199048,9.10786,2613.2,2613.1,0.00855918]
[1724347199364,9.14592351,2613.2,2613.1,0.00855918]
[1724347200555,9.12689155,2613.2,2613.1,0.00855918]
[1724347201361,8.74433155,2613.2,2613.1,0.00855918]
[1724347202463,7.41433155,2613.2,2613.1,0.00855918]
[1724347202664,7.79689155,2613.2,2613.1,0.00855918]
[1724347202961,7.77786,2613.2,2613.1,0.00855918]
[1724347205769,7.3953,2613.2,2613.1,0.00855918]
[1724347205959,10.24786,2613.2,2613.1,0.00855918]
[1724347206163,15.24786,2613.2,2613.1,0.00855918]
[1724347210171,16.20426,2613.2,2613.1,0.00855918]
[1724347210359,15.24786,2613.2,2613.1,0.00855918]
[1724347210561,10.24786,2613.2,2613.1,0.00855918]
[1724347213260,9.8653,2613.2,2613.1,0.00855918]
[1724347213467,6.0389,2613.2,2613.1,0.00855918]
[1724347213663,3.21091574,2613.5,2613.1,12.13995918]
[1724347213867,0.00574053,2613.6,2613.5,1.3388]
[1724347214176,0.3589,2614.2,2613.9,0.38244]
[1724347214368,0.3589,2614.2,2614.0,0.38243]
[1724347214674,0.38243,2614.1,2613.8,3.2078]
[1724347214974,0.3589,2614.2,2613.5,0.3825]
[1724347214975,3.57023343,2614.2,2613.5,0.3825]
[1724347215172,0.96181053,2614.1,2613.4,28.38252]
[1724347215366,0.38249,2613.7,2613.3,3.59034]
[1724347215569,0.9561,2614.0,2613.3,3.2078]
[1724347215570,0.38247,2613.9,2613.3,3.2078]
[1724347215876,0.38247,2613.8,2613.5,0.38251]
[1724347216171,0.76376,2613.9,2613.5,0.38251]
[1724347216477,0.38247,2613.8,2613.5,0.38251]
[1724347216673,0.38247,2613.8,2613.4,0.38252]
[1724347216877,0.3813,2613.9,2613.4,0.38252]
[1724347217070,0.38247,2613.8,2613.5,0.38251]
[1724347217271,0.3813,2613.9,2613.5,0.38251]
[1724347217272,0.76376,2613.9,2613.5,0.38251]
[1724347217767,0.76376,2613.9,2613.6,0.3825]
[1724347218281,0.76376,2613.9,2613.5,0.3825]
[1724347218667,0.76376,2613.9,2613.6,0.3825]
[1724347218862,0.76376,2613.9,2613.3,3.2078]
[1724347219277,0.76376,2613.9,2613.6,3.2078]
[1724347220472,0.76376,2613.9,2613.6,3.5903]
[1724347220665,0.76376,2613.9,2613.6,3.2078]
[1724347220870,0.76376,2613.9,2613.6,3.59029]
[1724347221065,0.3813,2613.9,2613.7,0.38248]
[1724347221272,0.38817053,2614.1,2613.7,0.38248]
[1724347221473,1.64817053,2614.1,2613.7,0.60698]
[1724347221669,0.38817053,2614.1,2613.7,0.60698]
[1724347222783,0.00574053,2614.1,2613.7,0.60698]
[1724347222973,0.38817053,2614.1,2613.7,0.60698]
[1724347223275,0.38817053,2614.1,2613.7,0.2245]
[1724347223276,0.38244,2614.0,2613.7,0.2245]
[1724347223971,0.38244,2614.0,2613.7,0.60698]
[1724347224276,0.00574053,2614.1,2613.8,0.38246]
[1724347224576,1.26574053,2614.1,2613.8,0.38246]
[1724347224979,1.64816053,2614.1,2613.8,0.38246]
[1724347225176,1.64816053,2614.1,2613.7,0.60697]
[1724347225677,1.64818053,2614.1,2613.7,0.60697]
[1724347225877,0.38247,2613.8,2613.6,3.2078]
[1724347226077,0.95621,2613.7,2613.3,3.2078]
[1724347226276,0.38255,2613.3,2613.1,0.00855918]
[1724347226579,1.33545,2613.6,2613.1,0.00855918]
[1724347226580,0.38256,2613.2,2613.1,0.00855918]
[1724347226881,0.38255,2613.3,2613.1,3.21635918]
[1724347227070,0.38255,2613.3,2613.1,0.00855918]
[1724347227679,0.38256,2613.2,2613.1,0.00855918]
[1724347228567,0.38255,2613.3,2613.1,0.00855918]
[1724347228775,0.38251,2613.5,2613.1,0.39111918]
[1724347229074,2.35251,2613.5,2613.1,0.39111918]
[1724347229476,1.97,2613.5,2613.2,0.38255]
[1724347229879,0.7552,2613.6,2613.2,0.2248]
[1724347230067,0.38251,2613.5,2613.2,0.60735]
[1724347230474,1.13771,2613.6,2613.2,0.60735]
[1724347230673,0.38251,2613.5,2613.2,0.60735]
[1724347231177,0.38251,2613.5,2613.2,0.2248]
[1724347231769,1.13771,2613.6,2613.2,0.60735]
[1724347231973,2.38771,2613.6,2613.2,0.60735]
[1724347232773,0.38251,2613.5,2613.2,0.60735]
[1724347233174,0.38251,2613.5,2613.2,0.2248]
[1724347233575,0.7552,2613.6,2613.3,0.38253]
[1724347233779,0.7552,2613.6,2613.2,0.60735]
[1724347233780,2.6277,2613.6,2613.2,0.60735]
[1724347234180,2.6277,2613.6,2613.2,0.38255]
[1724347234181,0.38251,2613.5,2613.2,0.38255]
[1724347234783,0.7552,2613.6,2613.2,0.38255]
[1724347234784,1.13771,2613.6,2613.2,0.38255]
[1724347234976,1.9652,2613.6,2613.3,0.38253]
[1724347235184,1.9652,2613.6,2613.1,3.21635918]
[1724347235382,2.3477,2613.6,2613.3,0.38253]
[1724347235970,1.9652,2613.6,2613.3,0.38253]
[1724347236172,1.9652,2613.6,2613.4,0.38252]
[1724347236480,6.885,2614.0,2613.5,0.3825]
[1724347236481,0.95612,2614.0,2613.5,0.3825]
[1724347236675,0.73717,2613.8,2613.5,0.3825]
[1724347236874,0.73717,2613.8,2613.1,4.17276918]
[1724347236875,0.38248,2613.7,2613.4,0.38252]
[1724347237878,0.38248,2613.7,2613.3,0.38253]
[1724347238282,0.38248,2613.7,2613.4,0.38252]
[1724347238483,0.3825,2613.6,2613.2,0.38254]
[1724347238884,0.3686,2613.5,2613.2,0.38254]
[1724347239385,0.3686,2613.5,2613.4,0.38253]
[1724347239586,0.3547,2613.8,2613.6,0.38249]
[1724347239775,0.73717,2613.8,2613.5,0.3825]
[1724347239980,1.99717,2613.8,2613.5,0.3825]
[1724347240178,1.99717,2613.8,2613.6,0.3825]
[1724347241181,1.99717,2613.8,2613.4,3.2078]
[1724347241182,0.38248,2613.7,2613.4,3.59032]
[1724347241685,0.38248,2613.7,2613.5,0.38251]
[1724347241989,0.38249,2613.7,2613.4,3.59032]
[1724347242789,0.3547,2613.8,2613.4,3.59032]
[1724347242989,0.38249,2613.7,2613.4,3.59032]
[1724347243188,0.38251,2613.5,2613.4,3.2078]
[1724347243388,0.38252,2613.5,2613.3,0.38253]
[1724347243584,0.38252,2613.5,2613.4,3.2078]
[1724347244294,0.38252,2613.5,2613.4,3.8264]
[1724347244488,0.38251,2613.6,2613.4,4.20892]
[1724347244685,0.38248,2613.7,2613.4,3.2078]
[1724347244880,0.73717,2613.8,2613.6,0.38248]
[1724347245079,2.5147,2613.8,2613.7,0.38248]
[1724347245390,0.3649,2614.0,2613.7,0.38248]
[1724347245582,1.505,2614.0,2613.9,0.38245]
[1724347246379,1.88744,2614.0,2613.8,0.38246]
[1724347247787,0.38245,2613.9,2613.7,3.59027]
[1724347248490,0.38247,2613.8,2613.7,3.2078]
[1724347248693,0.745,2614.0,2613.7,3.2078]
[1724347248888,0.38247,2613.8,2613.7,3.2078]
[1724347249784,1.33864,2613.8,2613.7,3.2078]
[1724347249989,1.33864,2613.8,2613.2,0.225]
[1724347249990,0.38251,2613.5,2613.4,3.2078]
[1724347250180,0.38253,2613.4,2613.3,0.38254]
[1724347250388,0.73583,2613.4,2613.2,0.38255]
[1724347250591,0.3568,2613.3,2613.2,0.38255]
[1724347250783,0.3568,2613.3,2613.2,3.59035]
[1724347250990,0.73934,2613.3,2613.2,3.2078]
[1724347251184,0.38255,2613.2,2613.1,0.00855918]
[1724347251393,3.40255,2613.2,2613.1,0.00855918]
[1724347251593,7.22895,2613.2,2613.1,0.00855918]
[1724347253184,4.20895,2613.2,2613.1,0.00855918]
[1724347254899,4.56375,2613.2,2613.1,0.00855918]
[1724347256397,4.58274217,2613.2,2613.1,0.00855918]
[1724347260101,4.58274314,2613.2,2613.1,0.00855918]
[1724347261210,5.90375,2613.2,2613.1,0.00855918]
[1724347267116,2.07735,2613.2,2613.1,0.00855918]
[1724347269799,1.34,2613.2,2613.1,0.39112918]
[1724347270004,1.34,2613.2,2613.1,0.00855918]
[1724347270406,1.72255,2613.2,2613.1,0.00855918]
[1724347271308,1.34,2613.2,2613.1,0.00855918]
[1724347271507,1.72255,2613.2,2613.1,0.00855918]
[1724347273404,5.54895,2613.2,2613.1,0.00855918]
[1724347275098,1.34,2613.2,2613.1,0.00855918]
[1724347275301,1.34,2613.2,2613.1,0.39112918]
[1724347275508,0.7477,2613.4,2613.2,0.38255]
[1724347275509,0.3746,2613.4,2613.2,0.38255]
[1724347275806,1.6846,2613.4,2613.2,0.38255]
[1724347276013,1.6846,2613.4,2613.1,3.59891918]
[1724347276908,1.6846,2613.4,2613.2,0.38255]
[1724347277104,0.3536,2613.6,2613.2,0.38254]
[1724347277300,0.01897539,2613.5,2613.3,0.38254]
[1724347277501,4.83689,2613.7,2613.3,0.38254]
[1724347277709,0.01897668,2613.6,2613.3,0.38253]
[1724347278106,0.01897668,2613.6,2613.4,0.38252]
[1724347278311,0.01897668,2613.6,2613.1,3.44125918]
[1724347278518,0.01897668,2613.6,2613.5,0.38251]
[1724347278706,0.38246,2613.9,2613.5,0.54801]
[1724347279015,0.01897317,2613.8,2613.5,0.1655]
[1724347279210,0.40144317,2613.8,2613.5,0.1655]
[1724347279410,0.01897317,2613.7,2613.5,0.1655]
[1724347280614,0.40145317,2613.7,2613.5,0.1655]
[1724347280808,0.38248,2613.7,2613.5,0.1655]
[1724347281009,0.38248,2613.7,2613.4,3.2078]
[1724347281909,1.32513,2614.0,2613.4,3.2078]
[1724347282108,0.3825,2613.6,2613.4,3.2078]
[1724347282313,0.01897423,2613.9,2613.1,3.44125918]
[1724347282314,0.38253,2613.4,2613.1,3.44125918]
[1724347282615,0.38255,2613.3,2613.1,3.21635918]
[1724347283313,0.38254,2613.4,2613.1,3.21635918]
[1724347283511,0.74254,2613.4,2613.1,3.21635918]
[1724347284721,0.38254,2613.3,2613.1,3.21635918]
[1724347285118,0.38253,2613.4,2613.1,3.59892918]
[1724347285317,0.7032,2613.5,2613.1,3.21635918]
[1724347285518,2.0332,2613.5,2613.2,0.38254]
[1724347286817,2.0332,2613.5,2613.3,0.38254]
[1724347287207,1.6784,2613.5,2613.3,0.38254]
[1724347287412,0.3484,2613.5,2613.3,0.38254]
[1724347288924,0.3484,2613.5,2613.2,0.38255]
[1724347289222,0.73091,2613.5,2613.2,0.38255]
[1724347292108,0.73091,2613.5,2613.3,0.38254]
[1724347292711,0.73091,2613.5,2613.1,3.21635918]
[1724347292712,1.30091,2613.5,2613.2,0.38255]
[1724347292909,1.30091,2613.5,2613.3,0.38254]
[1724347293317,1.30091,2613.5,2613.2,0.38254]
[1724347293517,1.30091,2613.5,2613.1,3.21635918]
[1724347293712,1.30091,2613.5,2613.2,0.38254]
[1724347295020,0.38253,2613.4,2613.2,0.38254]
[1724347295223,0.3484,2613.5,2613.1,3.21635918]
[1724347295523,0.3623,2613.6,2613.1,3.21635918]
[1724347295524,0.3623,2613.6,2613.5,0.38251]
[1724347296015,0.37,2613.8,2613.7,0.38248]
[1724347296226,0.72594053,2614.1,2613.8,0.38246]
[1724347296410,0.72594053,2614.1,2614.0,3.2078]
[1724347296411,1.09594053,2614.1,2614.0,3.2078]
[1724347296611,1.09594053,2614.1,2613.6,0.2249]
[1724347296612,1.09594053,2614.1,2613.6,3.81519]
[1724347296812,1.09594053,2614.1,2613.7,0.38248]
[1724347297320,1.09594053,2614.1,2613.9,3.2078]
[1724347299629,1.47837053,2614.1,2613.9,3.2078]
[1724347300628,1.47837053,2614.1,2613.6,3.2078]
[1724347301827,1.47837053,2614.1,2613.6,3.59029]
[1724347301828,1.09594053,2614.1,2613.6,3.59029]
[1724347302727,1.47836053,2614.1,2613.6,3.59029]
[1724347303922,0.38244,2614.0,2613.6,3.59029]
[1724347304118,1.09594053,2614.1,2613.6,3.2078]
[1724347304326,0.38244,2614.0,2613.6,3.2078]
[1724347304630,0.38244,2614.0,2613.6,3.5903]
[1724347306532,0.01897348,2613.9,2613.6,3.5903]
[1724347307336,0.01897348,2613.9,2613.7,0.38248]
[1724347308333,0.38244,2614.0,2613.7,0.38248]
[1724347308533,0.01897391,2613.9,2613.6,3.2078]
[1724347308724,0.37574053,2614.1,2613.6,3.2078]
[1724347308927,0.37574053,2614.1,2614.0,3.2078]
[1724347309124,0.39471562,2614.1,2614.0,3.59024]
[1724347309644,0.39471562,2614.1,2614.0,3.2078]
[1724347309938,0.39471562,2614.1,2614.0,3.59024]
[1724347310135,0.02471972,2614.1,2614.0,7.41584]
[1724347310337,0.00574053,2614.1,2614.0,7.41584]
[1724347311032,4.45062372,2615.0,2614.2,0.38241]
[1724347311228,4.45062372,2615.0,2614.5,3.2078]
[1724347311229,1.50838628,2614.9,2614.5,3.2078]
[1724347311433,0.01897628,2614.8,2614.6,0.38234]
[1724347311635,0.01897628,2614.8,2614.7,0.38234]
[1724347312145,0.01897628,2614.8,2614.5,3.2078]
[1724347312146,0.02338226,2614.8,2614.6,0.38234]
[1724347312340,0.00440598,2614.8,2614.7,0.38234]
[1724347312634,0.02337199,2614.8,2614.7,0.38234]
[1724347312834,0.02337199,2614.8,2614.6,0.38234]
[1724347313031,0.01896601,2614.7,2614.6,0.38234]
[1724347313540,0.00440598,2614.8,2614.6,0.38234]
[1724347315133,0.00440598,2614.8,2614.6,0.38235]
[1724347316041,0.00440598,2614.8,2614.5,3.59590053]
[1724347316240,0.38673598,2614.8,2614.5,3.59590053]
[1724347316538,0.00440598,2614.8,2614.5,3.21354053]
[1724347316945,0.38235,2614.7,2614.5,3.21354053]
[1724347317540,0.38235,2614.7,2614.5,3.59590053]
[1724347318151,0.38673598,2614.8,2614.5,3.59590053]
[1724347318743,0.00440598,2614.8,2614.5,3.21354053]
[1724347318932,2.37440598,2614.8,2614.5,3.21354053]
[1724347319245,0.38235,2614.7,2614.5,3.59590053]
[1724347320246,0.38673598,2614.8,2614.6,0.38235]
[1724347320439,1.82440598,2614.8,2614.5,3.21354053]
[1724347320837,0.38234,2614.7,2614.5,3.59590053]
[1724347321437,0.91234,2614.7,2614.5,3.59590053]
[1724347322543,0.53,2614.7,2614.6,0.38235]
[1724347324040,0.00440598,2614.8,2614.7,0.38234]
[1724347324844,0.00440598,2614.8,2614.7,4.20714]
[1724347327235,0.38672598,2614.8,2614.6,0.38235]
[1724347327442,0.00440598,2614.8,2614.6,0.38235]
[1724347327746,0.00440598,2614.8,2614.7,0.38234]
[1724347328141,0.00440598,2614.8,2614.5,3.21354053]
[1724347328142,0.00440598,2614.8,2614.6,0.38234]
[1724347328849,0.38235,2614.6,2614.5,3.21354053]
[1724347329146,0.38235,2614.6,2614.5,0.00574053]
[1724347329147,3.24133307,2614.6,2614.5,0.00574053]
[1724347329351,7.41813729,2614.6,2614.5,0.00574053]
[1724347329553,7.41813818,2614.6,2614.5,0.00574053]
[1724347330551,8.37401818,2614.6,2614.5,0.00574053]
[1724347330751,0.38239,2614.3,2613.9,3.59025]
[1724347330943,0.3818,2614.2,2613.9,3.59025]
[1724347331145,0.352,2614.1,2614.0,0.38244]
[1724347332249,0.352,2614.1,2613.9,3.59024]
[1724347332455,0.73442,2614.1,2613.9,3.59024]
[1724347332750,0.352,2614.1,2613.9,3.2078]
[1724347332957,0.73443,2614.1,2613.9,3.59025]
[1724347333344,0.73443,2614.1,2613.9,3.2078]
[1724347333543,0.73443,2614.1,2613.9,0.38245]
[1724347333747,0.352,2614.1,2613.9,3.59025]
[1724347333953,0.00574053,2614.3,2614.2,0.38241]
[1724347334257,0.38244,2614.0,2613.9,3.2078]
[1724347334445,0.76203,2614.1,2613.9,3.2078]
[1724347334649,0.76203,2614.1,2613.9,3.59025]
[1724347335052,0.38244,2614.0,2613.9,3.2078]
[1724347335249,0.40143642,2614.0,2613.9,3.2078]
[1724347335448,0.40143642,2614.0,2613.8,0.00574053]
[1724347335449,0.38245,2613.9,2613.8,0.00574053]
[1724347335755,0.74854642,2613.9,2613.8,0.00574053]
[1724347336352,0.74854447,2613.9,2613.8,0.00574053]
[1724347337352,0.74854107,2613.9,2613.8,0.00574053]
[1724347337956,0.36609107,2613.9,2613.8,0.38821053]
[1724347338361,0.36608478,2613.9,2613.8,0.38821053]
[1724347338554,0.3471,2613.9,2613.8,0.38821053]
[1724347339153,0.3471,2613.9,2613.8,3.59601053]
[1724347340062,0.3796,2614.1,2613.8,7.42161053]
[1724347340265,0.3796,2614.1,2614.0,0.38244]
[1724347340851,0.3796,2614.1,2613.9,0.38244]
[1724347341054,0.3796,2614.1,2614.0,0.38244]
[1724347341354,0.3796,2614.1,2613.9,0.38244]
[1724347341548,0.3796,2614.1,2614.0,0.38244]
[1724347341761,0.3985767,2614.1,2613.9,0.38244]
[1724347341962,0.3796,2614.1,2613.9,0.38244]
[1724347342552,0.3796,2614.1,2613.8,3.21354053]
[1724347342754,0.3796,2614.1,2613.9,0.38245]
[1724347343465,0.3796,2614.1,2613.8,3.21354053]
[1724347343764,0.3796,2614.1,2613.9,0.38244]
[1724347345067,0.3796,2614.1,2613.8,3.59600053]
[1724347345261,0.3796,2614.1,2613.9,0.38245]
[1724347346265,0.76203,2614.1,2613.8,3.59600053]
[1724347346760,0.38244,2614.0,2613.8,3.21354053]
[1724347346949,0.3796,2614.1,2613.8,0.00574053]
[1724347347151,0.3706,2613.9,2613.8,0.00574053]
[1724347348258,0.75305,2613.9,2613.8,0.00574053]
[1724347348467,6.55865,2613.9,2613.8,0.00574053]
[1724347348658,0.95617,2613.8,2613.1,3.59317865]
[1724347348958,0.3705,2613.7,2613.1,3.59317865]
[1724347349160,0.377,2613.6,2613.1,3.21061865]
[1724347349354,0.38255,2613.2,2613.1,0.00281865]
[1724347350064,4.20895,2613.2,2613.1,0.00281865]
[1724347350362,0.38255,2613.3,2613.1,0.00281865]
[1724347350563,0.3712,2613.2,2613.1,0.00281865]
[1724347350857,4.58015,2613.2,2613.1,0.00281865]
[1724347351169,4.1976,2613.2,2613.1,0.00281865]
[1724347352557,0.3712,2613.2,2613.1,0.00281865]